[Event "*** SCC Grand Prix: Titled Tuesday Blitz"]
[Site "Chess.com"]
[Date "2020.09.08"]
[Round "4"]
[White "skoularikii"]
[Black "Konek-Gorbunok"]
[Result "1/2-1/2"]
[WhiteElo "2482"]
[BlackElo "2324"]
[TimeControl "180+1"]
[EndTime "10:40:57 PDT"]
[Termination "Game drawn by repetition"]

1. e4 {[%clk 0:03:00.9]} 1... c5 {[%clk 0:02:59.9]} 2. Nf3 {[%clk 0:03:00.7]}
2... a6 {[%clk 0:02:59.7]} 3. d4 {[%clk 0:03:00.5]} 3... cxd4 {[%clk 0:02:59.9]}
4. Nxd4 {[%clk 0:03:01.2]} 4... Nf6 {[%clk 0:03:00]} 5. Nc3 {[%clk 0:03:00.1]}
5... e5 {[%clk 0:03:00.9]} 6. Nf3 {[%clk 0:02:53.2]} 6... Bb4 {[%clk 0:03:00.7]}
7. Nxe5 {[%clk 0:02:43.8]} 7... Qe7 {[%clk 0:02:58.3]} 8. Qd4 {[%clk 0:02:24.2]}
8... Bc5 {[%clk 0:02:34.5]} 9. Qc4 {[%clk 0:01:54.6]} 9... Qxe5 {[%clk
0:02:27.1]} 10. b4 {[%clk 0:01:53.9]} 10... Bxf2+ {[%clk 0:02:02.7]} 11. Kxf2
{[%clk 0:01:51]} 11... Qxc3 {[%clk 0:02:00.7]} 12. Qxc3 {[%clk 0:01:05.7]} 12...
Nxe4+ {[%clk 0:01:59.6]} 13. Kf3 {[%clk 0:01:03.9]} 13... Nxc3 {[%clk
0:02:00.5]} 14. Bb2 {[%clk 0:01:00.7]} 14... Nd5 {[%clk 0:01:55]} 15. Bxg7
{[%clk 0:00:58.6]} 15... Rg8 {[%clk 0:01:51.4]} 16. Be5 {[%clk 0:00:51.2]} 16...
d6 {[%clk 0:01:37.8]} 17. Bxd6 {[%clk 0:00:46.9]} 17... Be6 {[%clk 0:01:29.2]}
18. c4 {[%clk 0:00:45]} 18... Nf6 {[%clk 0:01:20.7]} 19. h3 {[%clk 0:00:40.6]}
19... Nbd7 {[%clk 0:01:16.8]} 20. Bd3 {[%clk 0:00:23.3]} 20... O-O-O {[%clk
0:01:11.8]} 21. Rhd1 {[%clk 0:00:22.6]} 21... Rg5 {[%clk 0:00:36.9]} 22. Rac1
{[%clk 0:00:20.5]} 22... Ne5+ {[%clk 0:00:32.6]} 23. Bxe5 {[%clk 0:00:16.7]}
23... Rxe5 {[%clk 0:00:32.6]} 24. g4 {[%clk 0:00:14.8]} 24... Kc7 {[%clk
0:00:22.7]} 25. Kf4 {[%clk 0:00:14.5]} 25... Rxd3 {[%clk 0:00:18.4]} 26. Rxd3
{[%clk 0:00:14.3]} 26... Re4+ {[%clk 0:00:18.2]} 27. Kf3 {[%clk 0:00:14.3]}
27... Rxc4 {[%clk 0:00:18.2]} 28. Rxc4+ {[%clk 0:00:10.7]} 28... Bxc4 {[%clk
0:00:18.4]} 29. Rc3 {[%clk 0:00:08.2]} 29... b5 {[%clk 0:00:18.3]} 30. a3 {[%clk
0:00:08.7]} 30... Nd5 {[%clk 0:00:18.3]} 31. Rc1 {[%clk 0:00:09.2]} 31... Kd6
{[%clk 0:00:19.2]} 32. Ke4 {[%clk 0:00:08.6]} 32... Nf6+ {[%clk 0:00:18.3]} 33.
Kf5 {[%clk 0:00:08.7]} 33... Nd5 {[%clk 0:00:18]} 34. Kg5 {[%clk 0:00:09.1]}
34... Ke5 {[%clk 0:00:17.5]} 35. Kh6 {[%clk 0:00:09.5]} 35... Bd3 {[%clk
0:00:14.2]} 36. Rc6 {[%clk 0:00:09.1]} 36... Kd4 {[%clk 0:00:10.5]} 37. Rxa6
{[%clk 0:00:08.8]} 37... Kc3 {[%clk 0:00:09.8]} 38. h4 {[%clk 0:00:09.2]} 38...
Kb3 {[%clk 0:00:09.2]} 39. g5 {[%clk 0:00:09.2]} 39... Nf4 {[%clk 0:00:07.9]}
40. Kg7 {[%clk 0:00:09.1]} 40... Bg6 {[%clk 0:00:06.9]} 41. Kh6 {[%clk
0:00:07.5]} 41... Nh5 {[%clk 0:00:06.1]} 42. Ra5 {[%clk 0:00:07.5]} 42... Kc4
{[%clk 0:00:05.5]} 43. a4 {[%clk 0:00:07]} 43... bxa4 {[%clk 0:00:04]} 44. Rxa4
{[%clk 0:00:07.2]} 44... Kb5 {[%clk 0:00:04.9]} 45. Ra7 {[%clk 0:00:07.2]} 45...
Kxb4 {[%clk 0:00:05.8]} 46. Ra8 {[%clk 0:00:07.4]} 46... Nf4 {[%clk 0:00:05.6]}
47. Rd8 {[%clk 0:00:07.5]} 47... Kc5 {[%clk 0:00:05.5]} 48. Rd7 {[%clk
0:00:07.5]} 48... Nh5 {[%clk 0:00:06.3]} 49. Rd8 {[%clk 0:00:07.2]} 49... Kc6
{[%clk 0:00:05.9]} 50. Rd4 {[%clk 0:00:06.9]} 50... Kc5 {[%clk 0:00:05.6]} 51.
Rd2 {[%clk 0:00:06.7]} 51... Kc6 {[%clk 0:00:05.6]} 52. Rd1 {[%clk 0:00:07]}
52... Nf4 {[%clk 0:00:05.2]} 53. Rd2 {[%clk 0:00:06.9]} 53... Nh5 {[%clk
0:00:06.1]} 54. Rd1 {[%clk 0:00:06.7]} 54... Ng3 {[%clk 0:00:06.2]} 55. Kg7
{[%clk 0:00:05.1]} 55... Nh5+ {[%clk 0:00:07.1]} 56. Kh6 {[%clk 0:00:05.2]}
1/2-1/2

[Event "*** SCC Grand Prix: Titled Tuesday Blitz"]
[Site "Chess.com"]
[Date "2020.09.08"]
[Round "4"]
[White "Arjun2002"]
[Black "sasko1234"]
[Result "1-0"]
[WhiteElo "2725"]
[BlackElo "2413"]
[TimeControl "180+1"]
[EndTime "10:40:58 PDT"]
[Termination "Arjun2002 won by resignation"]

1. e4 {[%clk 0:03:00.9]} 1... d6 {[%clk 0:02:55.9]} 2. d4 {[%clk 0:02:59.9]}
2... Nf6 {[%clk 0:02:55.9]} 3. Bd3 {[%clk 0:02:59]} 3... e5 {[%clk 0:02:54.1]}
4. c3 {[%clk 0:02:59.2]} 4... c6 {[%clk 0:02:53.7]} 5. Nf3 {[%clk 0:02:58.4]}
5... Qc7 {[%clk 0:02:51.7]} 6. O-O {[%clk 0:02:55.5]} 6... Bg4 {[%clk
0:02:51.3]} 7. h3 {[%clk 0:02:55]} 7... Bh5 {[%clk 0:02:50.7]} 8. Nbd2 {[%clk
0:02:55]} 8... Nbd7 {[%clk 0:02:50]} 9. Re1 {[%clk 0:02:54.8]} 9... Be7 {[%clk
0:02:50.1]} 10. Nf1 {[%clk 0:02:54.8]} 10... O-O {[%clk 0:02:49.9]} 11. Ng3
{[%clk 0:02:54.1]} 11... Bg6 {[%clk 0:02:50.1]} 12. Nh4 {[%clk 0:02:44.8]} 12...
Rfe8 {[%clk 0:02:49]} 13. Nhf5 {[%clk 0:02:44]} 13... Bf8 {[%clk 0:02:42.9]} 14.
Qf3 {[%clk 0:02:42.6]} 14... exd4 {[%clk 0:02:30.9]} 15. cxd4 {[%clk 0:02:41.1]}
15... c5 {[%clk 0:02:31.3]} 16. Be3 {[%clk 0:02:34.8]} 16... cxd4 {[%clk
0:02:28.3]} 17. Bxd4 {[%clk 0:02:34.6]} 17... Ne5 {[%clk 0:02:28.6]} 18. Bxe5
{[%clk 0:02:28.4]} 18... dxe5 {[%clk 0:02:26.7]} 19. Rac1 {[%clk 0:02:24.6]}
19... Qb6 {[%clk 0:02:23.6]} 20. b3 {[%clk 0:02:22.1]} 20... Rac8 {[%clk
0:02:07.7]} 21. Bc4 {[%clk 0:02:19.9]} 21... Qa5 {[%clk 0:01:57.9]} 22. a4
{[%clk 0:02:14.8]} 22... a6 {[%clk 0:01:57.3]} 23. Nh6+ {[%clk 0:02:01.3]} 23...
gxh6 {[%clk 0:01:47.3]} 24. Qxf6 {[%clk 0:02:00.8]} 24... Bg7 {[%clk 0:01:36.7]}
25. Qf3 {[%clk 0:02:00.5]} 25... b5 {[%clk 0:01:15.1]} 26. axb5 {[%clk
0:01:59.7]} 26... axb5 {[%clk 0:01:15.2]} 27. Bd5 {[%clk 0:02:00.3]} 27... Rxc1
{[%clk 0:01:14.1]} 28. Rxc1 {[%clk 0:02:01.2]} 28... Qd2 {[%clk 0:01:08.3]} 29.
Rc7 {[%clk 0:01:56.1]} 29... Qf4 {[%clk 0:01:07.8]} 30. Qc3 {[%clk 0:01:44.6]}
30... Rf8 {[%clk 0:00:57.3]} 31. Rc8 {[%clk 0:01:40.1]} 31... Rxc8 {[%clk
0:00:50.9]} 32. Qxc8+ {[%clk 0:01:39.3]} 32... Bf8 {[%clk 0:00:51.5]} 33. Nf5
{[%clk 0:01:28.3]} 33... Bxf5 {[%clk 0:00:44.1]} 34. exf5 {[%clk 0:01:28.4]}
34... e4 {[%clk 0:00:36.9]} 35. g3 {[%clk 0:01:24.8]} 35... Qe5 {[%clk 0:00:33]}
36. Qd7 {[%clk 0:01:10.8]} 36... Qe7 {[%clk 0:00:32.9]} 37. Qxb5 {[%clk
0:00:50.2]} 37... e3 {[%clk 0:00:32.4]} 38. Kf1 {[%clk 0:00:33.5]} 38... exf2
{[%clk 0:00:31.4]} 39. Kxf2 {[%clk 0:00:32.1]} 39... Qf6 {[%clk 0:00:29.3]} 40.
Qd3 {[%clk 0:00:24]} 40... Bc5+ {[%clk 0:00:28]} 41. Kf3 {[%clk 0:00:24.2]}
41... Qe5 {[%clk 0:00:27.2]} 42. Qe4 {[%clk 0:00:22.7]} 42... Qc3+ {[%clk
0:00:27.1]} 43. Kg4 {[%clk 0:00:21.8]} 43... Kg7 {[%clk 0:00:24.9]} 44. Bc4
{[%clk 0:00:19.5]} 44... Bd6 {[%clk 0:00:20.5]} 45. Qd3 {[%clk 0:00:17.3]} 45...
Qe5 {[%clk 0:00:19.8]} 46. h4 {[%clk 0:00:13.9]} 46... Kf6 {[%clk 0:00:17]} 47.
Qf3 {[%clk 0:00:10.9]} 47... Qa1 {[%clk 0:00:13.8]} 48. Qd5 {[%clk 0:00:08]}
48... Qa3 {[%clk 0:00:10.8]} 49. Qxf7+ {[%clk 0:00:07.4]} 49... Ke5 {[%clk
0:00:11.3]} 50. Qe6+ {[%clk 0:00:07.6]} 50... Kd4 {[%clk 0:00:11.8]} 51. f6
{[%clk 0:00:07.3]} 51... Kc3 {[%clk 0:00:10.8]} 52. f7 {[%clk 0:00:07.2]} 52...
Qc5 {[%clk 0:00:10.9]} 53. Qf6+ {[%clk 0:00:06.1]} 53... Kc2 {[%clk 0:00:10]}
54. Qf5+ {[%clk 0:00:06.2]} 54... Qxf5+ {[%clk 0:00:10.1]} 55. Kxf5 {[%clk
0:00:07.1]} 55... Kc3 {[%clk 0:00:09.5]} 56. g4 {[%clk 0:00:07.3]} 56... Kd4
{[%clk 0:00:09.1]} 57. g5 {[%clk 0:00:07.1]} 57... Kc5 {[%clk 0:00:08.8]} 58. g6
{[%clk 0:00:05.8]} 58... Bf8 {[%clk 0:00:08.7]} 59. gxh7 {[%clk 0:00:05.6]} 1-0

[Event "*** SCC Grand Prix: Titled Tuesday Blitz"]
[Site "Chess.com"]
[Date "2020.09.08"]
[Round "4"]
[White "lelya96"]
[Black "WPWPWP-2015"]
[Result "0-1"]
[WhiteElo "2153"]
[BlackElo "2442"]
[TimeControl "180+1"]
[EndTime "10:40:59 PDT"]
[Termination "WPWPWP-2015 won by resignation"]

1. e4 {[%clk 0:03:00.9]} 1... c5 {[%clk 0:02:54]} 2. Nf3 {[%clk 0:03:00]} 2...
d6 {[%clk 0:02:54]} 3. d4 {[%clk 0:02:59.6]} 3... cxd4 {[%clk 0:02:53.3]} 4.
Nxd4 {[%clk 0:02:59.9]} 4... Nf6 {[%clk 0:02:53.8]} 5. Nc3 {[%clk 0:03:00.5]}
5... a6 {[%clk 0:02:53.5]} 6. Be2 {[%clk 0:03:00.6]} 6... e5 {[%clk 0:02:52.1]}
7. Nb3 {[%clk 0:03:00.3]} 7... Be7 {[%clk 0:02:51.8]} 8. O-O {[%clk 0:03:00.3]}
8... O-O {[%clk 0:02:51.6]} 9. f4 {[%clk 0:03:00.8]} 9... Qc7 {[%clk 0:02:48.9]}
10. Kh1 {[%clk 0:03:00.2]} 10... b5 {[%clk 0:02:44.5]} 11. a3 {[%clk 0:02:59.5]}
11... Bb7 {[%clk 0:02:43.6]} 12. Bd3 {[%clk 0:02:53]} 12... d5 {[%clk
0:02:35.2]} 13. fxe5 {[%clk 0:02:45.9]} 13... Nxe4 {[%clk 0:02:33.4]} 14. Qg4
{[%clk 0:02:08.6]} 14... Qc8 {[%clk 0:02:06.7]} 15. Qh5 {[%clk 0:01:54.1]} 15...
g6 {[%clk 0:02:05.8]} 16. Qf3 {[%clk 0:01:43.1]} 16... Nxc3 {[%clk 0:02:01.3]}
17. bxc3 {[%clk 0:01:41.8]} 17... Nd7 {[%clk 0:01:59.6]} 18. Qe2 {[%clk
0:01:06.1]} 18... Nb6 {[%clk 0:01:41.2]} 19. Bh6 {[%clk 0:01:03.7]} 19... Re8
{[%clk 0:01:40.3]} 20. Qf2 {[%clk 0:00:59.4]} 20... Qe6 {[%clk 0:01:15.9]} 21.
Nd4 {[%clk 0:00:54.4]} 21... Bc5 {[%clk 0:01:08.9]} 22. Nxe6 {[%clk 0:00:30.7]}
22... Bxf2 {[%clk 0:01:08.1]} 23. Nc7 {[%clk 0:00:30.7]} 23... Bc5 {[%clk
0:01:04.9]} 24. Nxa8 {[%clk 0:00:27.4]} 24... Bxa8 {[%clk 0:01:04.9]} 25. Rae1
{[%clk 0:00:24.9]} 25... Bc6 {[%clk 0:01:02.1]} 26. Rf6 {[%clk 0:00:18.4]} 26...
Bd7 {[%clk 0:00:55.7]} 27. Ref1 {[%clk 0:00:16.4]} 27... Be6 {[%clk 0:00:53.9]}
28. h4 {[%clk 0:00:14.8]} 28... Nd7 {[%clk 0:00:50.8]} 29. R6f4 {[%clk
0:00:12.1]} 29... Nxe5 {[%clk 0:00:49.8]} 30. h5 {[%clk 0:00:12.5]} 30... Be3
{[%clk 0:00:43.9]} 31. hxg6 {[%clk 0:00:10.9]} 31... hxg6 {[%clk 0:00:42.2]} 32.
Rh4 {[%clk 0:00:10]} 32... Bxh6 {[%clk 0:00:31.8]} 33. Rxh6 {[%clk 0:00:10.2]}
33... Kg7 {[%clk 0:00:32.7]} 34. Rh4 {[%clk 0:00:09.6]} 34... Ng4 {[%clk
0:00:30.5]} 35. Rh3 {[%clk 0:00:06.9]} 35... Rc8 {[%clk 0:00:25.8]} 36. Rhf3
{[%clk 0:00:07]} 36... Ne5 {[%clk 0:00:25]} 37. Re3 {[%clk 0:00:06.9]} 37... Ng4
{[%clk 0:00:24.7]} 38. Ref3 {[%clk 0:00:06.7]} 38... Rxc3 {[%clk 0:00:24.3]} 39.
Kg1 {[%clk 0:00:05]} 39... Rxa3 {[%clk 0:00:24]} 40. Rg3 {[%clk 0:00:04]} 40...
Ne5 {[%clk 0:00:22.5]} 41. Re1 {[%clk 0:00:03.9]} 41... Nc4 {[%clk 0:00:17.6]}
42. Bxc4 {[%clk 0:00:03.7]} 42... Rxg3 {[%clk 0:00:16.5]} 43. Bd3 {[%clk
0:00:04.3]} 43... Rg4 {[%clk 0:00:16.5]} 44. Ra1 {[%clk 0:00:04.3]} 44... Bc8
{[%clk 0:00:16.2]} 45. Rb1 {[%clk 0:00:04.6]} 45... Rf4 {[%clk 0:00:15.3]} 46.
g3 {[%clk 0:00:04.2]} 46... Rf6 {[%clk 0:00:14.8]} 47. Kg2 {[%clk 0:00:04.5]}
47... Re6 {[%clk 0:00:14.6]} 48. Rb4 {[%clk 0:00:04.7]} 48... f5 {[%clk
0:00:14.1]} 49. Kf3 {[%clk 0:00:05.1]} 49... Kf6 {[%clk 0:00:14]} 50. Rd4 {[%clk
0:00:05]} 50... Re5 {[%clk 0:00:13.9]} 51. Rb4 {[%clk 0:00:05.5]} 51... Bb7
{[%clk 0:00:13.6]} 52. Rb2 {[%clk 0:00:05.5]} 52... g5 {[%clk 0:00:13.2]} 53.
Kf2 {[%clk 0:00:06.2]} 53... d4 {[%clk 0:00:13.2]} 54. Rb1 {[%clk 0:00:05.8]}
54... Re3 {[%clk 0:00:13.2]} 55. Rg1 {[%clk 0:00:05.6]} 55... Rf3+ {[%clk
0:00:13.2]} 56. Ke2 {[%clk 0:00:06]} 56... g4 {[%clk 0:00:12.7]} 57. Kd2 {[%clk
0:00:06.2]} 57... Rf2+ {[%clk 0:00:12.6]} 58. Kc1 {[%clk 0:00:05.8]} 58... Rg2
{[%clk 0:00:12.4]} 59. Rf1 {[%clk 0:00:05.6]} 59... Bf3 {[%clk 0:00:10.4]} 60.
Rh1 {[%clk 0:00:05.7]} 60... Rxc2+ {[%clk 0:00:09.4]} 61. Kxc2 {[%clk
0:00:05.8]} 61... Bxh1 {[%clk 0:00:09.5]} 62. Kb3 {[%clk 0:00:05.4]} 62... Be4
{[%clk 0:00:09.6]} 63. Kb4 {[%clk 0:00:05.8]} 63... Bxd3 {[%clk 0:00:09.6]} 0-1

[Event "*** SCC Grand Prix: Titled Tuesday Blitz"]
[Site "Chess.com"]
[Date "2020.09.08"]
[Round "4"]
[White "Korchmar_Vasiliy"]
[Black "gmpeter008"]
[Result "1-0"]
[WhiteElo "2607"]
[BlackElo "2357"]
[TimeControl "180+1"]
[EndTime "10:41:06 PDT"]
[Termination "Korchmar_Vasiliy won by resignation"]

1. e4 {[%clk 0:03:00.9]} 1... e5 {[%clk 0:02:57]} 2. Nf3 {[%clk 0:03:00.9]} 2...
Nc6 {[%clk 0:02:55.9]} 3. Bb5 {[%clk 0:03:01]} 3... g6 {[%clk 0:02:53.4]} 4. d4
{[%clk 0:02:53.8]} 4... exd4 {[%clk 0:02:52.4]} 5. Nxd4 {[%clk 0:02:53.7]} 5...
Bg7 {[%clk 0:02:51.7]} 6. Be3 {[%clk 0:02:44.8]} 6... Nge7 {[%clk 0:02:50.8]} 7.
Nc3 {[%clk 0:02:43.8]} 7... O-O {[%clk 0:02:50.2]} 8. Qd2 {[%clk 0:02:44]} 8...
d5 {[%clk 0:02:28.3]} 9. exd5 {[%clk 0:02:33.1]} 9... Nxd5 {[%clk 0:02:18.5]}
10. Nxc6 {[%clk 0:02:24.6]} 10... bxc6 {[%clk 0:02:16.5]} 11. Bxc6 {[%clk
0:02:25.5]} 11... Nxe3 {[%clk 0:02:16.2]} 12. Qxe3 {[%clk 0:01:30.4]} 12... Rb8
{[%clk 0:02:09.7]} 13. Rd1 {[%clk 0:01:20.3]} 13... Qh4 {[%clk 0:01:49.2]} 14.
O-O {[%clk 0:01:04]} 14... Rxb2 {[%clk 0:01:47.9]} 15. Nd5 {[%clk 0:01:03.9]}
15... Rxc2 {[%clk 0:01:47]} 16. g3 {[%clk 0:00:58.8]} 16... Qc4 {[%clk
0:01:23.3]} 17. Qxa7 {[%clk 0:00:56.6]} 17... Bh3 {[%clk 0:01:07.4]} 18. Rfe1
{[%clk 0:00:45.7]} 18... Bc3 {[%clk 0:01:02]} 19. Re4 {[%clk 0:00:31]} 19... Qd3
{[%clk 0:00:33.2]} 20. Ree1 {[%clk 0:00:14.1]} 20... Bxe1 {[%clk 0:00:09.9]} 21.
Rxe1 {[%clk 0:00:14.2]} 21... Re2 {[%clk 0:00:07.6]} 22. Rc1 {[%clk 0:00:06.2]}
22... Rc2 {[%clk 0:00:06.9]} 23. Re1 {[%clk 0:00:05.7]} 23... Rxc6 {[%clk
0:00:06.7]} 24. Ne7+ {[%clk 0:00:05.7]} 24... Kg7 {[%clk 0:00:06.8]} 25. Nxc6
{[%clk 0:00:06]} 25... Qf3 {[%clk 0:00:07]} 26. Qd4+ {[%clk 0:00:06.1]} 26... f6
{[%clk 0:00:07.1]} 27. Qe4 {[%clk 0:00:03.2]} 27... Re8 {[%clk 0:00:07.1]} 28.
Ne7 {[%clk 0:00:02.1]} 28... Qxe4 {[%clk 0:00:02.9]} 29. Rxe4 {[%clk 0:00:03]}
29... Kf7 {[%clk 0:00:03.8]} 30. Rh4 {[%clk 0:00:03.6]} 30... Rxe7 {[%clk
0:00:03.1]} 31. Rxh7+ {[%clk 0:00:03.8]} 31... Ke6 {[%clk 0:00:03.1]} 32. Rxh3
{[%clk 0:00:04.7]} 32... Kf5 {[%clk 0:00:03.9]} 33. Rh4 {[%clk 0:00:04.5]} 33...
g5 {[%clk 0:00:04.8]} 34. Rc4 {[%clk 0:00:04.6]} 34... Re2 {[%clk 0:00:04.7]}
35. Rxc7 {[%clk 0:00:03.9]} 35... Rxa2 {[%clk 0:00:04.7]} 36. Rc5+ {[%clk
0:00:04.1]} 36... Kg4 {[%clk 0:00:04.6]} 37. Kg2 {[%clk 0:00:05]} 37... f5
{[%clk 0:00:04.8]} 38. Rc4+ {[%clk 0:00:04.1]} 38... f4 {[%clk 0:00:04.3]} 39.
h3+ {[%clk 0:00:03.9]} 39... Kf5 {[%clk 0:00:04.7]} 40. g4+ {[%clk 0:00:04]}
40... Kf6 {[%clk 0:00:05.3]} 41. Rc6+ {[%clk 0:00:03.9]} 41... Ke5 {[%clk
0:00:05.2]} 42. Rc5+ {[%clk 0:00:04.7]} 42... Ke4 {[%clk 0:00:05.7]} 43. Rxg5
{[%clk 0:00:04.1]} 43... Ra1 {[%clk 0:00:05.5]} 44. Rg8 {[%clk 0:00:03.2]} 44...
f3+ {[%clk 0:00:05.9]} 45. Kh2 {[%clk 0:00:03.4]} 45... Rf1 {[%clk 0:00:06.1]}
46. Re8+ {[%clk 0:00:02.7]} 46... Kf4 {[%clk 0:00:06.6]} 47. Rf8+ {[%clk
0:00:03]} 47... Ke4 {[%clk 0:00:07.1]} 48. Kg3 {[%clk 0:00:02.6]} 48... Rg1+
{[%clk 0:00:07.1]} 49. Kh4 {[%clk 0:00:03]} 49... Rg2 {[%clk 0:00:07.4]} 50.
Re8+ {[%clk 0:00:02.6]} 50... Kf4 {[%clk 0:00:07.4]} 51. Rf8+ {[%clk 0:00:03.1]}
51... Ke4 {[%clk 0:00:07.9]} 52. g5 {[%clk 0:00:04]} 52... Rxf2 {[%clk
0:00:07.9]} 53. g6 {[%clk 0:00:04.1]} 53... Rg2 {[%clk 0:00:08.2]} 54. Kh5
{[%clk 0:00:04.6]} 54... f2 {[%clk 0:00:07.8]} 55. h4 {[%clk 0:00:04.9]} 55...
Ke3 {[%clk 0:00:03.2]} 56. Kh6 {[%clk 0:00:05.3]} 56... Rg3 {[%clk 0:00:01.7]}
57. g7 {[%clk 0:00:05.1]} 57... Rf3 {[%clk 0:00:01.8]} 58. Rxf3+ {[%clk
0:00:04.7]} 58... Kxf3 {[%clk 0:00:02.2]} 59. g8=Q {[%clk 0:00:05.6]} 1-0

[Event "*** SCC Grand Prix: Titled Tuesday Blitz"]
[Site "Chess.com"]
[Date "2020.09.08"]
[Round "4"]
[White "WIDBIFS"]
[Black "Snowflake"]
[Result "1-0"]
[WhiteElo "2710"]
[BlackElo "2489"]
[TimeControl "180+1"]
[EndTime "10:41:07 PDT"]
[Termination "WIDBIFS won by checkmate"]

1. d4 {[%clk 0:03:00.9]} 1... Nf6 {[%clk 0:02:52.7]} 2. Nf3 {[%clk 0:03:00.6]}
2... d5 {[%clk 0:02:50.1]} 3. Bf4 {[%clk 0:03:00.4]} 3... e6 {[%clk 0:02:48.6]}
4. e3 {[%clk 0:03:00.8]} 4... Bd6 {[%clk 0:02:49]} 5. Bg3 {[%clk 0:03:01.4]}
5... O-O {[%clk 0:02:48.7]} 6. Nbd2 {[%clk 0:03:01.9]} 6... c5 {[%clk
0:02:48.8]} 7. c3 {[%clk 0:03:02.2]} 7... Qc7 {[%clk 0:02:49.2]} 8. Bd3 {[%clk
0:03:02.7]} 8... Nbd7 {[%clk 0:02:48.6]} 9. Qc2 {[%clk 0:03:02.2]} 9... e5
{[%clk 0:02:42.6]} 10. dxe5 {[%clk 0:03:03.1]} 10... Nxe5 {[%clk 0:02:43]} 11.
Nxe5 {[%clk 0:03:04]} 11... Bxe5 {[%clk 0:02:43.9]} 12. Bh4 {[%clk 0:03:04.8]}
12... h6 {[%clk 0:02:40.2]} 13. Nf3 {[%clk 0:03:04.8]} 13... Re8 {[%clk
0:02:27.4]} 14. O-O {[%clk 0:03:03.3]} 14... Ne4 {[%clk 0:02:11.6]} 15. Bxe4
{[%clk 0:03:02.7]} 15... dxe4 {[%clk 0:02:08.4]} 16. Nxe5 {[%clk 0:03:03.2]}
16... Qxe5 {[%clk 0:02:06.6]} 17. Bg3 {[%clk 0:03:03.3]} 17... Qe7 {[%clk
0:01:35.6]} 18. h3 {[%clk 0:02:56.5]} 18... Bf5 {[%clk 0:01:32.1]} 19. Qa4
{[%clk 0:02:31]} 19... Red8 {[%clk 0:01:28.8]} 20. Rfd1 {[%clk 0:02:20.3]} 20...
a6 {[%clk 0:01:21.1]} 21. Qa5 {[%clk 0:02:08.6]} 21... Rd3 {[%clk 0:01:10.2]}
22. Rxd3 {[%clk 0:02:07]} 22... exd3 {[%clk 0:01:11.1]} 23. Rd1 {[%clk
0:02:04.5]} 23... b5 {[%clk 0:01:01.8]} 24. Qb6 {[%clk 0:02:02.8]} 24... c4
{[%clk 0:00:55.7]} 25. a4 {[%clk 0:01:49.2]} 25... Qd7 {[%clk 0:00:36.3]} 26. a5
{[%clk 0:01:41.2]} 26... Qa7 {[%clk 0:00:32.5]} 27. Qc6 {[%clk 0:01:34.7]} 27...
Rd8 {[%clk 0:00:31.3]} 28. Rd2 {[%clk 0:01:31.5]} 28... Rc8 {[%clk 0:00:26.1]}
29. Qd5 {[%clk 0:01:30.7]} 29... Qd7 {[%clk 0:00:26]} 30. Qf3 {[%clk 0:01:22.6]}
30... Bg6 {[%clk 0:00:23.1]} 31. Be5 {[%clk 0:01:21.2]} 31... Re8 {[%clk
0:00:22.8]} 32. Bd4 {[%clk 0:01:21.2]} 32... Be4 {[%clk 0:00:23.2]} 33. Qg3
{[%clk 0:01:21.4]} 33... Bg6 {[%clk 0:00:22.6]} 34. f3 {[%clk 0:01:15.1]} 34...
Qd8 {[%clk 0:00:22.9]} 35. Bb6 {[%clk 0:01:11.1]} 35... Qe7 {[%clk 0:00:23]} 36.
h4 {[%clk 0:01:07.4]} 36... b4 {[%clk 0:00:22]} 37. Qf4 {[%clk 0:01:07.1]} 37...
bxc3 {[%clk 0:00:19.6]} 38. bxc3 {[%clk 0:01:08]} 38... Rc8 {[%clk 0:00:19.6]}
39. Bd4 {[%clk 0:01:00.5]} 39... h5 {[%clk 0:00:19.5]} 40. e4 {[%clk 0:00:57.8]}
40... Qa3 {[%clk 0:00:18.3]} 41. Qe5 {[%clk 0:00:52.3]} 41... Qf8 {[%clk
0:00:18.2]} 42. Rb2 {[%clk 0:00:49.8]} 42... f6 {[%clk 0:00:17.9]} 43. Qe6+
{[%clk 0:00:46.9]} 43... Bf7 {[%clk 0:00:18.3]} 44. Qxa6 {[%clk 0:00:44.1]}
44... Rd8 {[%clk 0:00:14.7]} 45. Qb6 {[%clk 0:00:41]} 45... Ra8 {[%clk
0:00:11.2]} 46. a6 {[%clk 0:00:40.2]} 46... Qa3 {[%clk 0:00:11.7]} 47. a7 {[%clk
0:00:35.4]} 47... Rxa7 {[%clk 0:00:10.2]} 48. Qb8+ {[%clk 0:00:12.9]} 48... Kh7
{[%clk 0:00:09.6]} 49. Qxa7 {[%clk 0:00:06.4]} 49... Qxb2 {[%clk 0:00:09.1]} 50.
Qxf7 {[%clk 0:00:07.1]} 50... Qc1+ {[%clk 0:00:07.5]} 51. Kh2 {[%clk 0:00:06.7]}
51... Qf4+ {[%clk 0:00:07.9]} 52. g3 {[%clk 0:00:06.2]} 52... Qd2+ {[%clk
0:00:07.1]} 53. Kh3 {[%clk 0:00:06.2]} 53... Qd1 {[%clk 0:00:04.7]} 54. Qxh5+
{[%clk 0:00:06.6]} 54... Kg8 {[%clk 0:00:05]} 55. Qe8+ {[%clk 0:00:07.3]} 55...
Kh7 {[%clk 0:00:05.1]} 56. Qh5+ {[%clk 0:00:07]} 56... Kg8 {[%clk 0:00:05.2]}
57. Qd5+ {[%clk 0:00:07.6]} 57... Kh8 {[%clk 0:00:04.9]} 58. e5 {[%clk
0:00:06.5]} 58... Qh1+ {[%clk 0:00:04.8]} 59. Kg4 {[%clk 0:00:06.7]} 59... d2
{[%clk 0:00:05.7]} 60. exf6 {[%clk 0:00:05.3]} 60... gxf6 {[%clk 0:00:02.3]} 61.
Bxf6+ {[%clk 0:00:05.7]} 61... Kh7 {[%clk 0:00:03.2]} 62. Qd7+ {[%clk 0:00:03]}
62... Kh6 {[%clk 0:00:04.1]} 63. Qg7# {[%clk 0:00:03.1]} 1-0